fUSD/lending_fUSD_20260118
["ID","MTS","AMOUNT","RATE_DAILY","PERIOD"]
[402646151,1768744243471,-6883.494434,0.00018,2]
[402646257,1768744244497,-1433.24564057,0.0001764,2]
[402646260,1768744244509,-245.44817365,0.0001764,2]
[402646262,1768744244518,-1050.37637699,0.00018,2]
[402646266,1768744244555,-70391.56412352,0.00018,2]
[402646269,1768744244567,-1520.0,0.00018,2]
[402646271,1768744244579,-9645.27202959,0.00018,2]
[402646421,1768744246140,-252.92199997,0.00017965,2]
[402646429,1768744246203,-2079.50002,0.00017965,2]
[402646526,1768744247126,-106.57798003,0.00017965,2]
[402646529,1768744247136,-5606.41390174,0.00018,2]
[402646531,1768744247147,-2317.30783355,0.00018,2]
[402646536,1768744247184,-5558.10584621,0.00018,2]
[402646538,1768744247195,-651.4799978,0.00018,2]
[402646543,1768744247244,-753.01482349,0.00018,2]
[402646551,1768744247303,-1326.69248257,0.00018,2]
[402647285,1768744254976,184.33,8.727e-05,2]
[402647302,1768744255172,184.33,0.00013091,2]
[402649375,1768744515852,600.0,0.00027397,120]
[402649376,1768744549174,659.44,0.0002496,120]
[402649379,1768744667982,-1200.0,0.00015068,2]
[402649380,1768744668004,-300.0,0.00015068,2]
[402649381,1768744718009,-491.06218838,0.00015069,2]
[402649382,1768744718035,-196.47111437,0.00015069,2]
[402649383,1768744718071,-500.0,0.00015069,2]
[402649384,1768744718109,-500.0,0.00015069,2]
[402649385,1768744718146,-500.0,0.00015069,2]
[402649386,1768744718183,-500.0,0.00015069,2]
[402649387,1768744718217,-500.0,0.00015069,2]
[402649388,1768744718254,-500.0,0.00015069,2]
[402649389,1768744718290,-500.0,0.00015069,2]
[402649390,1768744718326,-500.0,0.00015069,2]
[402649391,1768744718363,-521.33355733,0.00015069,2]
[402649392,1768744718400,-500.0,0.00015069,2]
[402649393,1768744718438,-500.0,0.00015069,2]
[402649394,1768744718477,-500.0,0.00015069,2]
[402649395,1768744718514,-500.0,0.00015069,2]
[402649396,1768744718549,-500.0,0.00015069,2]
[402649397,1768744718587,-371.94259603,0.00015069,2]
[402649398,1768744718625,-500.0,0.00015069,2]
[402649399,1768744718663,-500.0,0.00015069,2]
[402649400,1768744718699,-500.0,0.00015069,2]
[402649401,1768744718736,-500.0,0.00015069,2]
[402649405,1768744741366,300.0,0.00015069,2]
[402649407,1768744801469,300.0,0.00015069,2]
[402649408,1768744801621,1200.0,0.00015069,2]
[402649409,1768744802902,300.0,0.00015069,2]
[402649410,1768744805816,275.0,0.0001507,2]
[402649411,1768744821913,291.69234079,0.00015069,2]
[402649412,1768744841864,500.0,0.00015069,2]
[402649413,1768744841927,500.0,0.00015069,2]
[402649414,1768744841962,500.0,0.00015069,2]
[402649416,1768744860331,500.0,0.00015069,2]
[402649417,1768744861433,300.0,0.00015069,2]
[402649419,1768744877496,151.0,0.0001507,2]
[402649420,1768744877597,311.77455945,0.0001507,2]
[402649421,1768744877756,311.77455945,0.0001507,2]
[402649422,1768744891964,500.0,0.00015069,2]
[402649423,1768744917502,500.0,0.00015069,2]
[402649424,1768744949024,500.0,0.00015069,2]
[402649425,1768744983014,300.0,0.00015069,2]
[402649426,1768744988888,500.0,0.00015069,2]
[402649427,1768745016871,500.0,0.00015069,2]
[402649428,1768745041396,300.0,0.00015069,2]
[402649429,1768745092758,500.0,0.00015069,2]
[402649430,1768745101231,300.0,0.00015069,2]
[402649431,1768745101262,936.0,0.00015069,2]
[402649432,1768745118901,500.0,0.00015069,2]
[402649433,1768745128852,500.0,0.00015069,2]
[402649434,1768745161593,300.0,0.00015069,2]
[402649435,1768745163013,300.0,0.00015069,2]
[402649436,1768745178072,311.77455947,0.0001507,2]
[402649437,1768745178461,151.0,0.0001507,2]
[402649438,1768745179905,253.08537508,0.0001507,2]
[402649439,1768745179935,155.88727973,0.0001507,2]
[402649440,1768745180797,155.88727973,0.0001507,2]
[402649441,1768745221695,300.0,0.00015069,2]
[402649479,1768745341800,300.0,0.00015069,2]
[402649480,1768745343010,300.0,0.00015069,2]
[402649481,1768745346118,-4164.954626,0.0001507,2]
[402649482,1768745349943,10000.0,0.00015,10]
[402649483,1768745366098,10000.0,0.00015,10]
[402649484,1768745380984,10000.0,0.00015,10]
[402649485,1768745390041,-10000.0,0.0001507,2]
[402649486,1768745390411,-10000.0,0.0001507,2]
[402649487,1768745393546,10000.0,0.00015,10]
[402649488,1768745401329,300.0,0.00015069,2]
[402649489,1768745401530,1200.0,0.00015069,2]
[402649490,1768745408374,-10000.0,0.0001507,2]
[402649491,1768745411216,10000.0,0.00015,10]
[402649492,1768745418904,-10000.0,0.0001507,2]
[402649493,1768745422401,775369.1632,0.0001497,2]
[402649494,1768745429102,10000.0,0.00015,10]
[402649501,1768745431285,-1825.06357538,0.000153,2]
[402649502,1768745431297,-280.73151849,0.000153,2]
[402649503,1768745431306,-811.07080247,0.00015593,2]
[402649504,1768745431318,-711.56898413,0.00015593,2]
[402649505,1768745431347,-4418.4944291,0.00015593,2]
[402649506,1768745431357,-1170.47961941,0.00015793,2]
[402649507,1768745431367,-159.0,0.000159,2]
[402649508,1768745431377,-500.0,0.00015973,2]
[402649509,1768745431386,-157.89629183,0.00015973,2]
[402649510,1768745431396,-501.2897294,0.00015973,2]
[402649511,1768745431406,-500.0,0.00015973,2]
[402649512,1768745431415,-500.0,0.00015973,2]
[402649513,1768745431424,-394.00839803,0.00015973,2]
[402649514,1768745431786,-105.99160197,0.00015973,2]
[402649515,1768745431796,-500.0,0.00015973,2]
[402649516,1768745431805,-500.0,0.00015973,2]
[402649517,1768745431815,-500.0,0.00015973,2]
[402649518,1768745431824,-500.0,0.00015973,2]
[402649519,1768745431834,-500.0,0.00015973,2]
[402649520,1768745431843,-160.0,0.00016,2]
[402649521,1768745431853,-151.0,0.00016031,2]
[402649522,1768745431863,-151.0,0.00016033,2]
[402649523,1768745431872,-6737.74814102,0.000161,2]
[402649524,1768745431883,-466.7112046,0.000161,2]
[402649525,1768745431893,-158.9,0.00016149,2]
[402649526,1768745431903,-150.0,0.000162,2]
[402649527,1768745431913,-150.0,0.000162,2]
[402649528,1768745431923,-150.0,0.000162,2]
[402649529,1768745431936,-150.0,0.000162,2]
[402649530,1768745431946,-150.0,0.000162,2]
[402649531,1768745431955,-150.0,0.000162,2]
[402649532,1768745431964,-150.0,0.000162,2]
[402649533,1768745431973,-150.0,0.000162,2]
[402649534,1768745431983,-150.0,0.000162,2]
[402649535,1768745431992,-556.49025604,0.000162,2]
[402649536,1768745432029,-320.65660765,0.000162,2]
[402649537,1768745432040,-386.85313631,0.000162,2]
[402649538,1768745432050,-151.0,0.000162,2]
[402649539,1768745432059,-87.76628709,0.000162,2]
[402649540,1768745432070,-878.94188727,0.000162,2]
[402649541,1768745432081,-297.29182564,0.000162,2]
[402649542,1768745432090,-151.0,0.000162,2]
[402649543,1768745432100,-1264.0,0.000162,2]
[402649544,1768745432109,-151.0,0.000162,2]
[402649545,1768745432121,-151.0,0.000162,2]
[402649546,1768745432130,-201.0929607,0.000162,2]
[402649547,1768745432142,-640.9070393,0.000162,2]
[402649548,1768745432151,-151.0,0.000162,2]
[402649549,1768745432160,-1264.0,0.000162,2]
[402649550,1768745432170,-151.0,0.000162,2]
[402649551,1768745432179,-842.0,0.000162,2]
[402649552,1768745432189,-151.0,0.000162,2]
[402649553,1768745432199,-1264.0,0.000162,2]
[402649554,1768745432208,-842.0,0.000162,2]
[402649555,1768745432217,-151.0,0.000162,2]
[402649556,1768745432227,-151.0,0.000162,2]
[402649557,1768745432237,-1264.0,0.000162,2]
[402649558,1768745432246,-151.0,0.000162,2]
[402649559,1768745432256,-151.0,0.000162,2]
[402649560,1768745432266,-1264.0,0.000162,2]
[402649561,1768745432275,-151.0,0.000162,2]
[402649562,1768745432285,-151.0,0.000162,2]
[402649563,1768745432295,-1264.0,0.000162,2]
[402649564,1768745432304,-842.0,0.000162,2]
[402649565,1768745432314,-151.0,0.000162,2]
[402649566,1768745432324,-1264.0,0.000162,2]
[402649567,1768745432333,-151.0,0.000162,2]
[402649568,1768745432346,-842.0,0.000162,2]
[402649569,1768745432355,-1264.0,0.000162,2]
[402649570,1768745432364,-151.0,0.000162,2]
[402649571,1768745432374,-151.0,0.000162,2]
[402649572,1768745432383,-842.0,0.000162,2]
[402649573,1768745432392,-1264.0,0.000162,2]
[402649574,1768745432401,-399.30887887,0.000162,2]
[402649575,1768745432411,-151.0,0.000162,2]
[402649576,1768745432420,-151.0,0.000162,2]
[402649577,1768745432430,-1264.0,0.000162,2]
[402649578,1768745432440,-151.0,0.000162,2]
[402649579,1768745432450,-151.0,0.000162,2]
[402649580,1768745432461,-842.0,0.000162,2]
[402649581,1768745432471,-1264.0,0.000162,2]
[402649582,1768745432482,-151.0,0.000162,2]
[402649583,1768745432493,-151.0,0.000162,2]
[402649584,1768745432502,-151.0,0.000162,2]
[402649585,1768745432512,-842.0,0.000162,2]
[402649586,1768745432532,-1264.0,0.000162,2]
[402649587,1768745432542,-151.0,0.000162,2]
[402649588,1768745432551,-151.0,0.000162,2]
[402649589,1768745432561,-151.0,0.000162,2]
[402649590,1768745432571,-151.0,0.000162,2]
[402649591,1768745432580,-151.0,0.000162,2]
[402649592,1768745432590,-1264.0,0.000162,2]
[402649593,1768745432600,-151.0,0.000162,2]
[402649594,1768745432610,-151.0,0.000162,2]
[402649595,1768745432620,-152.0,0.000162,2]
[402649596,1768745432629,-151.0,0.000162,2]
[402649597,1768745432639,-1264.0,0.000162,2]
[402649598,1768745432649,-151.0,0.000162,2]
[402649599,1768745432658,-151.0,0.000162,2]
[402649600,1768745432668,-152.0,0.000162,2]
[402649601,1768745432678,-151.0,0.000162,2]
[402649602,1768745432688,-1264.0,0.000162,2]
[402649603,1768745432699,-151.0,0.000162,2]
[402649604,1768745432709,-152.0,0.000162,2]
[402649605,1768745432719,-151.0,0.000162,2]
[402649606,1768745432728,-1264.0,0.000162,2]
[402649607,1768745432738,-151.0,0.000162,2]
[402649608,1768745432747,-152.0,0.000162,2]
[402649609,1768745432757,-151.0,0.000162,2]
[402649610,1768745432767,-1264.0,0.000162,2]
[402649611,1768745432777,-151.0,0.000162,2]
[402649612,1768745432787,-152.0,0.000162,2]
[402649613,1768745432797,-265.82949653,0.000162,2]
[402649614,1768745432806,-1264.0,0.000162,2]
[402649615,1768745432816,-152.0,0.000162,2]
[402649616,1768745432826,-151.0,0.000162,2]
[402649617,1768745432835,-151.0,0.000162,2]
[402649618,1768745432845,-1264.0,0.000162,2]
[402649619,1768745432854,-152.0,0.000162,2]
[402649620,1768745432864,-151.0,0.000162,2]
[402649621,1768745432878,-1264.0,0.000162,2]
[402649622,1768745432888,-152.0,0.000162,2]
[402649623,1768745432898,-1264.0,0.000162,2]
[402649624,1768745432909,-152.0,0.000162,2]
[402649625,1768745432918,-151.0,0.000162,2]
[402649626,1768745432928,-1264.0,0.000162,2]
[402649627,1768745432938,-152.0,0.000162,2]
[402649628,1768745432949,-1264.0,0.000162,2]
[402649629,1768745432958,-151.0,0.000162,2]
[402649630,1768745432968,-152.0,0.000162,2]
[402649631,1768745432978,-1264.0,0.000162,2]
[402649632,1768745432988,-151.0,0.000162,2]
[402649633,1768745432998,-1264.0,0.000162,2]
[402649634,1768745433008,-151.0,0.000162,2]
[402649635,1768745433018,-152.0,0.000162,2]
[402649636,1768745433029,-1264.0,0.000162,2]
[402649637,1768745433039,-151.0,0.000162,2]
[402649638,1768745433049,-152.0,0.000162,2]
[402649639,1768745433058,-1264.0,0.000162,2]
[402649640,1768745433068,-151.0,0.000162,2]
[402649641,1768745433078,-152.0,0.000162,2]
[402649642,1768745433087,-1264.0,0.000162,2]
[402649643,1768745433097,-151.0,0.000162,2]
[402649644,1768745433107,-152.0,0.000162,2]
[402649645,1768745433116,-1264.0,0.000162,2]
[402649646,1768745433126,-151.0,0.000162,2]
[402649647,1768745433136,-1264.0,0.000162,2]
[402649648,1768745433145,-151.0,0.000162,2]
[402649649,1768745433156,-151.0,0.000162,2]
[402649650,1768745433166,-151.0,0.000162,2]
[402649651,1768745433175,-151.0,0.000162,2]
[402649652,1768745433185,-152.0,0.000162,2]
[402649653,1768745433195,-151.0,0.000162,2]
[402649654,1768745433206,-151.0,0.000162,2]
[402649655,1768745433216,-152.0,0.000162,2]
[402649656,1768745433226,-151.0,0.000162,2]
[402649657,1768745433240,-1264.0,0.000162,2]
[402649658,1768745433252,-151.0,0.000162,2]
[402649659,1768745433262,-1264.0,0.000162,2]
[402649660,1768745433273,-151.0,0.000162,2]
[402649661,1768745433283,-1264.0,0.000162,2]
[402649662,1768745433293,-1264.0,0.000162,2]
[402649663,1768745433303,-151.0,0.000162,2]
[402649664,1768745433314,-151.0,0.000162,2]
[402649665,1768745433324,-1264.0,0.000162,2]
[402649666,1768745433334,-151.0,0.000162,2]
[402649667,1768745433346,-151.0,0.000162,2]
[402649668,1768745433356,-1264.0,0.000162,2]
[402649669,1768745433366,-151.0,0.000162,2]
[402649670,1768745433376,-1264.0,0.000162,2]
[402649671,1768745433387,-151.0,0.000162,2]
[402649672,1768745433396,-1264.0,0.000162,2]
[402649673,1768745433406,-151.0,0.000162,2]
[402649674,1768745433417,-151.0,0.000162,2]
[402649675,1768745433427,-151.0,0.000162,2]
[402649676,1768745433441,-151.0,0.000162,2]
[402649677,1768745433451,-151.0,0.000162,2]
[402649678,1768745433461,-151.0,0.000162,2]
[402649679,1768745433471,-151.0,0.000162,2]
[402649680,1768745433480,-151.0,0.000162,2]
[402649681,1768745433490,-151.0,0.000162,2]
[402649682,1768745433500,-151.0,0.000162,2]
[402649683,1768745433510,-151.0,0.000162,2]
[402649684,1768745433520,-158.0,0.000162,2]
[402649685,1768745433530,-158.0,0.000162,2]
[402649686,1768745433541,-158.0,0.000162,2]
[402649687,1768745433550,-158.0,0.000162,2]
[402649688,1768745433560,-158.0,0.000162,2]
[402649689,1768745433570,-158.0,0.000162,2]
[402649690,1768745433581,-158.0,0.000162,2]
[402649691,1768745433591,-151.0,0.000162,2]
[402649692,1768745433600,-151.0,0.000162,2]
[402649693,1768745433610,-151.0,0.000162,2]
[402649694,1768745433624,-7204.45934554,0.000163,2]
[402649695,1768745433634,-150.0,0.0001635,2]
[402649696,1768745433644,-2500.0,0.00016421,2]
[402649697,1768745433655,-500.0,0.00016438,2]
[402649698,1768745433665,-500.0,0.00016438,2]
[402649699,1768745433676,-500.0,0.00016438,2]
[402649700,1768745433686,-150.43118397,0.00016438,2]
[402649701,1768745433696,-1054.77183709,0.0001646,2]
[402649702,1768745433706,-46059.94,0.00016476,2]
[402649703,1768745433716,-167.89,0.00016491,2]
[402649704,1768745433725,-420.0,0.00016491,2]
[402649705,1768745433735,-150.0,0.000165,2]
[402649706,1768745433744,-7204.45934554,0.000165,2]
[402649707,1768745433754,-1000.0,0.00016521,2]
[402649708,1768745433764,-602.90526417,0.00016521,2]
[402649709,1768745433774,-1000.0,0.00016521,2]
[402649710,1768745433784,-805.82815613,0.00016521,2]
[402649711,1768745433793,-500.0,0.00016521,2]
[402649712,1768745433804,-1000.0,0.00016521,2]
[402649713,1768745433814,-500.0,0.00016521,2]
[402649714,1768745433823,-1000.0,0.00016521,2]
[402649715,1768745433833,-511.52231244,0.00016521,2]
[402649716,1768745433844,-14413.39,0.00016542,2]
[402649717,1768745433854,-250.0,0.00016548,2]
[402649718,1768745433864,-150.0,0.0001656,2]
[402649719,1768745433873,-250.0,0.00016577,2]
[402649720,1768745433883,-1000.0,0.00016616,2]
[402649721,1768745433892,-6247.73,0.00016629,2]
[402649722,1768745433902,-659.44,0.0001664,2]
[402649723,1768745433912,-150.0,0.0001665,2]
[402649724,1768745433921,-150.0,0.0001665,2]
[402649725,1768745433932,-150.0,0.0001665,2]
[402649726,1768745433942,-254.25336762,0.00016666,2]
[402649727,1768745433953,-1054.77183708,0.00016666,2]
[402649728,1768745433963,-7204.45934554,0.000167,2]
[402649729,1768745433973,-833.0,0.0001672,2]
[402649730,1768745433983,-150.0,0.000168,2]
[402649731,1768745433996,-150.0,0.000168,2]
[402649732,1768745434006,-150.0,0.000168,2]
[402649733,1768745434016,-1054.77183708,0.00016871,2]
[402649734,1768745434026,-500.0,0.00016877,2]
[402649735,1768745434037,-361.5,0.00016887,2]
[402649736,1768745434047,-7204.45934554,0.000169,2]
[402649737,1768745434056,-150.0,0.0001692,2]
[402649738,1768745434066,-5941.1342157,0.00016935,2]
[402649739,1768745434076,-150.0,0.0001695,2]
[402649740,1768745434086,-361.5,0.00016988,2]
[402649741,1768745434096,-276.86923101,0.00016999,2]
[402649742,1768745434106,-500.0,0.00016999,2]
[402649743,1768745434116,-500.0,0.00016999,2]
[402649744,1768745434126,-10550.88518231,0.00016999,2]
[402649745,1768745434136,-250.0,0.00017,2]
[402649746,1768745434146,-1500.0,0.00017068,2]
[402649747,1768745434155,-500.0,0.00017068,2]
[402649748,1768745434164,-1054.77183708,0.00017077,2]
[402649749,1768745434174,-361.5,0.00017089,2]
[402649750,1768745434188,-1227.46,0.00017099,2]
[402649751,1768745434198,-574.12855637,0.00017099,2]
[402649752,1768745434207,-174.61919141,0.00017099,2]
[402649753,1768745434217,-660.99739858,0.00017099,2]
[402649754,1768745434228,-4001.0,0.00017099,2]
[402649755,1768745434238,-151.0,0.00017099,2]
[402649756,1768745434249,-151.0,0.00017099,2]
[402649757,1768745434259,-151.0,0.00017099,2]
[402649758,1768745434269,-151.0,0.00017099,2]
[402649759,1768745434279,-151.0,0.00017099,2]
[402649760,1768745434290,-151.0,0.00017099,2]
[402649761,1768745434299,-151.0,0.00017099,2]
[402649762,1768745434309,-151.0,0.00017099,2]
[402649763,1768745434318,-151.0,0.00017099,2]
[402649764,1768745434328,-151.0,0.00017099,2]
[402649765,1768745434338,-151.0,0.00017099,2]
[402649766,1768745434348,-10550.88518227,0.00017099,2]
[402649767,1768745434357,-150.0,0.000171,2]
[402649768,1768745434367,-150.0,0.000171,2]
[402649769,1768745434378,-150.0,0.000171,2]
[402649770,1768745434388,-150.0,0.000171,2]
[402649771,1768745434399,-7204.45934554,0.000171,2]
[402649772,1768745434410,-162.77640541,0.00017163,2]
[402649773,1768745434420,-1177.0,0.00017166,2]
[402649774,1768745434430,-361.5,0.00017191,2]
[402649775,1768745434439,-10550.88518227,0.00017199,2]
[402649776,1768745434449,-150.0,0.0001725,2]
[402649777,1768745434460,-166.66,0.00017253,2]
[402649778,1768745434469,-150.0,0.0001728,2]
[402649779,1768745434479,-1054.77183708,0.00017283,2]
[402649780,1768745434489,-361.5,0.00017292,2]
[402649781,1768745434500,-10550.88518227,0.00017299,2]
[402649782,1768745434512,-7204.45934554,0.000173,2]
[402649783,1768745434523,-150.0,0.00017313,2]
[402649784,1768745434534,-1227.46,0.00017373,2]
[402649785,1768745434545,-1177.0,0.00017389,2]
[402649786,1768745434555,-361.5,0.00017393,2]
[402649787,1768745434574,-10550.88518227,0.00017399,2]
[402649788,1768745434588,-150.0,0.000174,2]
[402649789,1768745434598,-150.0,0.000174,2]
[402649790,1768745434608,-150.0,0.000174,2]
[402649791,1768745434618,-167.89,0.00017407,2]
[402649792,1768745434627,-184.33,0.00017455,2]
[402649793,1768745434638,-1177.0,0.00017477,2]
[402649794,1768745434649,-150.0,0.00017477,2]
[402649795,1768745434659,-1054.77183708,0.00017489,2]
[402649796,1768745434668,-361.5,0.00017494,2]
[402649797,1768745434679,-10550.88518227,0.000175,2]
[402649798,1768745434688,-2000.0,0.000175,2]
[402649799,1768745434698,-1000.0,0.000175,2]
[402649800,1768745434708,-7204.45934554,0.000175,2]
[402649801,1768745434718,-1000.0,0.00017534,2]
[402649802,1768745434727,-150.0,0.0001755,2]
[402649803,1768745434737,-150.0,0.0001755,2]
[402649804,1768745434747,-150.0,0.0001755,2]
[402649805,1768745434757,-1177.0,0.00017589,2]
[402649806,1768745434767,-361.5,0.00017595,2]
[402649807,1768745434777,-1177.0,0.00017599,2]
[402649808,1768745434787,-10550.88518227,0.000176,2]
[402649809,1768745434797,-1000.0,0.000176,2]
[402649810,1768745434806,-150.0,0.0001764,2]
[402649811,1768745434816,-2518.04072134,0.0001764,2]
[402649812,1768745434826,-1227.46,0.00017647,2]
[402649813,1768745434835,-595.37131296,0.00017647,2]
[402649814,1768745434845,-207.88880149,0.00017647,2]
[402649815,1768745434855,-1054.77183708,0.00017694,2]
[402649816,1768745434865,-361.5,0.00017696,2]
[402649817,1768745434874,-150.0,0.00017699,2]
[402649818,1768745434884,-150.0,0.00017699,2]
[402649819,1768745434894,-500.0,0.00017699,2]
[402649820,1768745434904,-160.85120225,0.00017699,2]
[402649821,1768745434914,-250.17696529,0.00017699,2]
[402649822,1768745434925,-150.0,0.000177,2]
[402649823,1768745434935,-1118.51606834,0.000177,2]
[402649824,1768745434945,-7204.45934554,0.000177,2]
[402649825,1768745434955,-1407.0,0.00017707,2]
[402649826,1768745434965,-615.0,0.00017707,2]
[402649827,1768745434975,-3473.0,0.00017707,2]
[402649828,1768745434985,-1268.0,0.00017707,2]
[402649829,1768745434995,-412.0,0.00017707,2]
[402649830,1768745435005,-1202.0,0.00017707,2]
[402649831,1768745435015,-915.0,0.00017707,2]
[402649832,1768745435024,-4826.0,0.00017707,2]
[402649833,1768745435035,-566.0,0.00017707,2]
[402649834,1768745435045,-300.0,0.00017716,2]
[402649835,1768745435055,-500.0,0.00017716,2]
[402649836,1768745435064,-8759.91,0.00017728,5]
[402649837,1768745435074,-1000.0,0.00017738,2]
[402649838,1768745435084,-1177.0,0.00017744,2]
[402649839,1768745435093,-150.0,0.00017752,2]
[402649840,1768745435102,-150.0,0.00017754,2]
[402649841,1768745435112,-153.00604463,0.00017754,2]
[402649842,1768745435121,-500.0,0.00017754,2]
[402649843,1768745435131,-150.0,0.00017768,2]
[402649844,1768745435140,-1000.0,0.00017786,2]
[402649845,1768745435149,-1000.0,0.00017791,2]
[402649846,1768745435159,-361.5,0.00017798,2]
[402649847,1768745435168,-1000.0,0.000178,2]
[402649848,1768745435178,-500.0,0.00017808,2]
[402649849,1768745435187,-1000.0,0.00017808,2]
[402649850,1768745435196,-150.0,0.00017809,2]
[402649851,1768745435206,-501.86548223,0.00017809,2]
[402649852,1768745435215,-150.0,0.00017812,2]
[402649853,1768745435225,-1000.0,0.00017814,2]
[402649854,1768745435234,-164.60905,0.0001782,2]
[402649855,1768745435244,-164.60905,0.0001782,2]
[402649856,1768745435253,-221.56546566,0.00017832,2]
[402649857,1768745435263,-331.44868567,0.00017832,2]
[402649858,1768745435272,-448.4601,0.00017832,2]
[402649859,1768745435282,-150.0,0.0001785,2]
[402649860,1768745435292,-320.392,0.00017852,2]
[402649861,1768745435302,-200.0,0.00017856,2]
[402649862,1768745435312,-500.0,0.00017863,2]
[402649863,1768745435321,-150.0,0.00017863,2]
[402649864,1768745435331,-5800.0,0.00017866,2]
[402649865,1768745435344,-5170.0,0.00017873,2]
[402649866,1768745435353,-231.70849186,0.00017899,2]
[402649867,1768745435363,-500.0,0.00017899,2]
[402649868,1768745435372,-361.5,0.00017899,2]
[402649869,1768745435382,-10000.0,0.000179,2]
[402649870,1768745435391,-1890.10673428,0.000179,2]
[402649871,1768745435400,-1349.0,0.000179,2]
[402649872,1768745435410,-475.38540096,0.000179,2]
[402649873,1768745435419,-475.38540081,0.000179,2]
[402649874,1768745435429,-475.38540081,0.000179,2]
[402649875,1768745435439,-475.38540081,0.000179,2]
[402649876,1768745435449,-475.38540081,0.000179,2]
[402649877,1768745435458,-475.38540081,0.000179,2]
[402649878,1768745435468,-475.38540081,0.000179,2]
[402649879,1768745435477,-475.38540081,0.000179,2]
[402649880,1768745435487,-475.38540081,0.000179,2]
[402649881,1768745435497,-475.38540081,0.000179,2]
[402649882,1768745435507,-475.38540081,0.000179,2]
[402649883,1768745435517,-475.38540081,0.000179,2]
[402649884,1768745435527,-475.38540081,0.000179,2]
[402649885,1768745435537,-475.38540081,0.000179,2]
[402649886,1768745435547,-475.38540081,0.000179,2]
[402649887,1768745435556,-475.38540081,0.000179,2]
[402649888,1768745435566,-475.38540081,0.000179,2]
[402649889,1768745435575,-475.38540081,0.000179,2]
[402649890,1768745435586,-7204.45934554,0.000179,2]
[402649891,1768745435596,-475.38540081,0.000179,2]
[402649892,1768745435606,-475.38540081,0.000179,2]
[402649893,1768745435616,-10290.69997386,0.000179,2]
[402649894,1768745435626,-1249.39886294,0.000179,2]
[402649895,1768745435635,-1688.0063006,0.000179,2]
[402649896,1768745435646,-1054.77183708,0.000179,2]
[402649897,1768745435655,-211.61539095,0.000179,3]
[402649898,1768745435667,-834.53781173,0.000179,2]
[402649899,1768745435676,-5244.58242462,0.000179,2]
[402649900,1768745435686,-500.0,0.000179,2]
[402649901,1768745435696,-500.0,0.000179,2]
[402649902,1768745435706,-500.0,0.000179,2]
[402649903,1768745435715,-500.0,0.000179,2]
[402649904,1768745435725,-500.0,0.000179,2]
[402649905,1768745435735,-500.0,0.000179,2]
[402649906,1768745435745,-150.0,0.00017907,2]
[402649907,1768745435754,-1000.0,0.00017909,2]